bitfinex-derivatives/quotes_ETHF0:USTF0_20250602
["timestamp","ask_amount","ask_price","bid_price","bid_amount"]
[1748878119667,0.7858,2543.9,2543.8,11.8496]
[1748878120261,0.7858,2543.9,2543.5,33.7951]
[1748878120262,0.7859,2543.6,2543.5,36.2068]
[1748878120461,0.7859,2543.6,2543.5,43.6118]
[1748878121067,1.96472,2543.7,2543.2,3.2078]
[1748878121266,0.78588,2543.7,2543.2,3.2078]
[1748878121565,24.4344,2543.9,2543.5,3.2078]
[1748878121764,0.78588,2543.7,2543.5,3.2078]
[1748878122064,0.78587,2543.7,2543.6,1.3602]
[1748878123266,3.2078,2544.1,2543.6,6.3602]
[1748878123565,0.78583,2543.9,2543.8,3.2078]
[1748878123767,0.78583,2543.9,2543.8,10.6138]
[1748878124170,0.78583,2543.9,2543.8,3.2078]
[1748878124364,0.78586,2543.7,2543.6,1.3602]
[1748878124764,0.78591,2543.6,2543.4,3.2078]
[1748878125064,0.78591,2543.6,2543.5,7.406]
[1748878125263,0.78592,2543.6,2543.5,7.14]
[1748878125465,1.3142,2544.0,2543.4,3.2078]
[1748878125679,0.78593,2543.5,2543.4,3.2078]
[1748878125865,28.18268,2543.5,2543.0,7.14]
[1748878126166,1.2595,2543.4,2543.0,7.14]
[1748878126373,0.78608,2543.1,2543.0,7.14]
[1748878126966,0.786,2543.3,2543.0,7.14]
[1748878127262,23.74397,2543.4,2543.1,5.24794]
[1748878127669,0.78599,2543.3,2543.2,1.2541]
[1748878128072,0.78581,2543.9,2543.3,1.96498]
[1748878128260,23.5155,2544.3,2543.8,3.2078]
[1748878128464,0.78571,2544.2,2543.9,8.3951]
[1748878128662,0.78573,2544.2,2543.9,9.18088]
[1748878128861,0.78575,2544.1,2543.9,9.18088]
[1748878129073,23.5015,2544.3,2543.9,8.3951]
[1748878129272,0.78577,2544.0,2543.9,8.3951]
[1748878130664,0.78577,2544.0,2543.9,7.141]
[1748878130865,24.7998,2544.3,2543.9,7.141]
[1748878131071,0.78577,2544.0,2543.9,7.141]
[1748878131269,0.78581,2543.9,2543.8,3.2078]
[1748878131468,1.3543,2543.9,2543.5,7.141]
[1748878131767,0.78586,2543.8,2543.5,7.141]
[1748878131973,0.78588,2543.7,2543.5,7.141]
[1748878132174,0.7859,2543.6,2543.5,7.141]
[1748878132476,1.3543,2543.9,2543.5,10.3488]
[1748878132672,3.2078,2544.2,2543.6,1.3576]
[1748878132975,0.5895,2544.3,2543.9,3.2078]
[1748878133180,0.5895,2544.3,2544.2,3.2078]
[1748878133369,1.37518,2544.3,2544.2,10.3498]
[1748878133579,0.5895,2544.3,2544.2,10.3498]
[1748878133780,1.37518,2544.3,2544.2,10.3498]
[1748878134077,0.5895,2544.3,2544.2,10.3498]
[1748878134276,1.37518,2544.3,2544.2,10.3498]
[1748878134474,0.5895,2544.3,2544.2,12.49311]
[1748878135780,1.37518,2544.3,2544.2,11.7074]
[1748878135977,1.37518,2544.3,2544.2,4.5654]
[1748878136179,1.37518,2544.3,2544.2,8.2446]
[1748878136378,0.78571,2544.2,2544.1,33.026]
[1748878136581,0.78571,2544.2,2544.1,39.913]
[1748878137881,1.37519,2544.3,2544.1,39.913]
[1748878138083,1.37519,2544.3,2544.2,1.2763]
[1748878138277,1.37519,2544.3,2544.2,4.4841]
[1748878139477,0.5895,2544.3,2544.2,4.4841]
[1748878139778,1.37518,2544.3,2544.2,4.4841]
[1748878140183,0.5895,2544.3,2544.2,5.26981]
[1748878141487,0.5895,2544.3,2543.9,3.2078]
[1748878141689,1.37518,2544.3,2544.2,3.2078]
[1748878141993,1.37518,2544.3,2544.2,10.0948]
[1748878142295,0.5895,2544.3,2544.2,15.88051]
[1748878142693,0.5895,2544.3,2544.2,3.99351]
[1748878142893,0.5895,2544.3,2544.2,10.88051]
[1748878143393,1.37518,2544.3,2544.2,10.88051]
[1748878143592,0.5895,2544.3,2544.2,10.88051]
[1748878145192,0.5895,2544.3,2544.1,3.2078]
[1748878145499,1.37518,2544.3,2544.2,6.887]
[1748878145793,1.37518,2544.3,2544.1,3.2078]
[1748878145794,0.78571,2544.2,2544.1,3.2078]
[1748878145993,0.78571,2544.2,2544.1,10.0948]
[1748878146197,0.78571,2544.2,2544.1,3.2078]
[1748878146394,0.78571,2544.2,2544.1,9.8418]
[1748878146791,0.78571,2544.2,2544.1,3.2078]
[1748878146995,0.78571,2544.2,2544.1,9.8418]
[1748878147197,3.2078,2544.2,2543.5,3.2078]
[1748878147390,1.2713,2544.2,2543.8,3.2078]
[1748878147591,23.5663,2544.2,2543.8,3.99362]
[1748878147796,1.2713,2544.2,2543.9,0.7858]
[1748878148000,0.00589542,2544.5,2544.4,0.78565]
[1748878148198,0.00589542,2544.5,2544.4,10.62744]
[1748878148703,0.00589542,2544.5,2544.4,9.8418]
[1748878148898,0.00589542,2544.5,2544.4,11.96474]
[1748878149504,0.59539542,2544.5,2544.4,11.96474]
[1748878149699,0.59539542,2544.5,2544.4,3.2078]
[1748878149700,1.38101542,2544.5,2544.4,3.2078]
[1748878149901,2.65231542,2544.5,2544.4,6.634]
[1748878150804,0.59539542,2544.5,2544.4,7.41965]
[1748878151006,0.59539542,2544.5,2544.4,8.68405]
[1748878151207,0.59539542,2544.5,2543.7,3.2078]
[1748878151208,8.80319542,2544.5,2543.7,3.2078]
[1748878151505,1.2435,2544.4,2543.8,0.78581]
[1748878151705,0.78578,2544.0,2543.7,3.2078]
[1748878151899,0.78578,2544.0,2543.9,6.634]
[1748878152306,0.78583,2543.8,2543.7,3.2078]
[1748878152505,0.78583,2543.8,2543.7,9.8418]
[1748878153005,0.78583,2543.8,2543.7,3.2078]
[1748878153196,0.78583,2543.8,2543.7,9.8418]
[1748878153800,0.78583,2543.8,2543.7,3.2078]
[1748878153999,0.78583,2543.8,2543.7,9.8418]
[1748878155101,0.78593,2543.5,2543.4,3.2117456]
[1748878155302,0.78593,2543.5,2543.4,0.0039456]
[1748878155510,0.78593,2543.5,2543.4,6.6379456]
[1748878155707,0.78593,2543.5,2543.4,0.0039456]
[1748878155904,0.78593,2543.5,2543.4,6.6379456]
[1748878158408,0.78602,2543.2,2543.1,7.89e-06]
[1748878158608,3.99382,2543.2,2543.1,7.89e-06]
[1748878159210,0.78602,2543.2,2543.1,7.89e-06]
[1748878159913,3.66562,2543.4,2543.1,7.42204789]
[1748878159914,1.7007,2543.4,2543.1,7.42204789]
[1748878160113,0.78599,2543.3,2543.1,6.63600789]
[1748878160412,0.78602,2543.2,2543.1,7.90200789]
[1748878160611,0.78602,2543.2,2543.1,7.89e-06]
[1748878160811,0.78602,2543.2,2543.1,6.63600789]
[1748878161012,0.78602,2543.2,2543.1,7.89e-06]
[1748878161213,0.78602,2543.2,2543.1,6.63600789]
[1748878161712,0.78602,2543.2,2543.1,7.89e-06]
[1748878161916,0.78602,2543.2,2543.1,6.63600789]
[1748878163312,22.73502,2543.2,2543.1,6.63600789]
[1748878164314,21.912,2543.4,2543.1,6.63600789]
[1748878164515,22.69796,2543.4,2543.3,3.2078]
[1748878164719,3.66535,2543.8,2543.3,3.2078]
[1748878164907,0.78596,2543.4,2543.3,3.99378]
[1748878165112,21.9,2543.7,2543.3,3.99378]
[1748878165314,23.86467,2543.7,2543.3,0.78598]
[1748878165515,21.881,2543.6,2543.2,0.786]
[1748878165714,0.78602,2543.2,2543.1,2.05493789]
[1748878166014,0.78602,2543.2,2543.1,6.37800789]
[1748878167015,0.78602,2543.2,2543.1,7.89e-06]
[1748878167424,0.78602,2543.2,2543.1,6.37800789]
[1748878167721,3.88397133,2544.2,2543.2,3.93011]
[1748878167921,4.47936675,2544.5,2543.9,3.9936]
[1748878168116,4.47936675,2544.5,2543.9,43.4066]
[1748878168318,2.55948542,2544.5,2543.9,43.4066]
[1748878168513,0.78577,2544.0,2543.9,3.2078]
[1748878168820,21.837,2544.2,2543.9,6.378]
[1748878169013,21.837,2544.2,2544.0,6.378]
[1748878169014,2.08775,2544.1,2544.0,6.378]
[1748878169219,22.6612,2544.3,2544.0,6.378]
[1748878169518,0.78574,2544.1,2544.0,6.378]
[1748878169714,1.96456,2543.9,2543.3,6.378]
[1748878169908,3.2078,2544.1,2543.3,6.378]
[1748878169909,0.78586,2543.7,2543.3,6.378]
[1748878170121,0.78592,2543.6,2543.4,2.12224]
[1748878170322,1.302,2543.7,2543.4,1.3363]
[1748878170523,0.78596,2543.4,2543.3,6.378]
[1748878170915,0.78594,2543.5,2543.3,7.16399]
[1748878171115,1.302,2543.7,2543.3,6.378]
[1748878171524,0.78597,2543.4,2543.2,2.0536]
[1748878171726,0.78597,2543.4,2543.3,6.378]
[1748878172019,1.302,2543.7,2543.3,7.16398]
[1748878172219,1.96474,2543.6,2543.2,2.0536]
[1748878172422,0.786,2543.3,2543.1,3.20780789]
[1748878172616,0.786,2543.3,2543.1,3.99382789]
[1748878172825,0.786,2543.3,2543.2,0.78602]
[1748878173027,0.786,2543.3,2543.2,6.378]
[1748878173427,0.78602,2543.2,2543.1,3.20780789]
[1748878173622,0.78602,2543.2,2543.1,7.89e-06]
[1748878173822,3.2078,2543.2,2543.1,7.16405789]
[1748878174022,1.2849,2543.5,2543.1,6.37800789]
[1748878174225,1.2849,2543.5,2543.2,0.78599]
[1748878174431,0.786,2543.3,2543.1,7.16404789]
[1748878174727,1.2849,2543.5,2543.2,7.16401]
[1748878174920,1.2849,2543.5,2543.3,0.78599]
[1748878175324,0.78597,2543.4,2543.2,7.164]
[1748878175530,0.786,2543.3,2543.1,7.89e-06]
[1748878175729,1.2849,2543.5,2543.2,7.16401]
[1748878175934,0.78597,2543.4,2543.3,6.378]
[1748878176125,0.78597,2543.4,2543.2,0.786]
[1748878176326,0.78597,2543.4,2543.3,6.378]
[1748878176829,1.2849,2543.5,2543.1,7.89e-06]
[1748878177032,1.3102,2543.3,2543.2,7.16402]
[1748878177426,21.789,2543.6,2543.2,6.378]
[1748878177622,1.3024,2543.5,2543.1,1.29800789]
[1748878177824,0.786,2543.3,2543.2,6.378]
[1748878178028,1.3024,2543.5,2543.1,7.89e-06]
[1748878178029,0.78602,2543.2,2543.1,7.89e-06]
[1748878178326,1.37582,2543.2,2543.1,6.37800789]
[1748878178533,1.37582,2543.2,2543.1,7.89e-06]
[1748878178825,1.37582,2543.2,2543.1,6.37800789]
[1748878179018,1.37582,2543.2,2543.1,7.89e-06]
[1748878179225,2.67822,2543.2,2543.1,6.37800789]
[1748878179425,2.67822,2543.2,2543.1,7.89e-06]
[1748878179831,2.67822,2543.2,2543.1,6.37800789]
[1748878180126,2.67822,2543.2,2543.1,7.89e-06]
[1748878180334,5.80150673,2543.2,2543.1,6.37800789]
[1748878180628,5.80150673,2543.2,2542.4,33.82326]
[1748878180629,1.96514,2543.1,2542.0,3.2078]
[1748878180829,1.96514,2543.1,2542.0,6.378]
[1748878180830,0.78637,2542.1,2542.0,6.378]
[1748878181225,3.99417,2542.1,2542.0,6.378]
[1748878181427,0.78645,2541.8,2541.7,1.2482]
[1748878181737,3.30195,2542.0,2541.5,3.2078]
[1748878182032,0.78652,2541.6,2541.5,4.456]
[1748878182229,0.78655,2541.5,2541.4,33.037]
[1748878182428,0.78655,2541.5,2541.4,39.415]
[1748878183023,3.2078,2542.1,2541.4,39.415]
[1748878183227,0.78648,2541.8,2541.6,0.78651]
[1748878183433,22.9329,2542.0,2541.4,43.871]
[1748878183434,0.78649,2541.7,2541.5,0.78653]
[1748878183640,24.89891,2542.0,2541.5,1.3413]
[1748878183828,0.78651,2541.6,2541.5,1.3413]
[1748878184029,22.9329,2542.0,2541.4,42.6228]
[1748878184230,22.9329,2542.0,2541.6,0.78649]
[1748878184429,0.7865,2541.7,2541.5,2.12783]
[1748878184838,0.7865,2541.7,2541.6,6.134]
[1748878185133,3.2078,2542.1,2541.6,6.134]
[1748878185337,3.2078,2542.1,2542.0,0.78639]
[1748878185525,3.99418,2542.1,2541.9,0.7864]
[1748878185731,3.99418,2542.1,2542.0,0.78639]
[1748878185943,0.7864,2542.0,2541.9,0.78641]
[1748878186132,0.78644,2541.9,2541.8,0.78643]
[1748878186531,3.2078,2542.1,2541.4,36.2448]
[1748878186740,3.2078,2542.1,2541.5,7.4811]
[1748878186741,1.364,2542.0,2541.5,7.4811]
[1748878186937,0.78652,2541.6,2541.5,2.13362]
[1748878187540,0.78652,2541.6,2541.5,0.78652]
[1748878187744,0.78655,2541.5,2541.4,0.78658]
[1748878188035,0.78655,2541.5,2541.4,8.26768]
[1748878188640,0.78645,2541.8,2541.7,0.78647]
[1748878188834,0.78651,2541.7,2541.6,0.78649]
[1748878189336,3.2078,2542.0,2541.5,1.96636]
[1748878189541,0.78643,2541.9,2541.8,0.78644]
[1748878189739,3.2078,2542.0,2541.9,0.78642]
[1748878190036,3.2078,2542.0,2541.6,1.2544]
[1748878190337,3.2078,2542.0,2541.5,1.96634]
[1748878190338,3.2078,2542.0,2541.7,6.135]
[1748878190537,3.2078,2542.0,2541.9,0.78642]
[1748878191740,0.78639,2542.0,2541.9,6.92142]
[1748878191936,0.78646,2541.9,2541.8,0.78643]
[1748878192136,0.78646,2541.9,2541.8,6.92143]
[1748878192836,1.2719,2542.0,2541.5,1.2544]
[1748878192837,4.4797,2542.0,2541.5,1.2544]
[1748878193139,0.78642,2541.9,2541.8,6.135]
[1748878193342,0.78648,2541.7,2541.6,0.78649]
[1748878193544,0.78648,2541.7,2541.6,6.92149]
[1748878193840,0.78645,2541.9,2541.8,0.78643]
[1748878194438,0.78648,2541.8,2541.7,0.78647]
[1748878194639,0.7865,2541.7,2541.6,0.78649]
[1748878194844,0.78648,2541.8,2541.7,0.78647]
[1748878195048,0.78648,2541.7,2541.6,0.78649]
[1748878195342,0.78664,2541.2,2541.1,6.135]
[1748878195536,3.99444,2541.2,2541.1,6.135]
[1748878196039,1.96673,2541.1,2540.5,1.3425]
[1748878196339,1.96673,2541.1,2540.6,6.92182]
[1748878196340,3.2078,2540.7,2540.6,6.92182]
[1748878196946,3.2078,2540.7,2540.6,0.78682]
[1748878197141,0.78675,2540.9,2540.7,0.78678]
[1748878197443,0.78677,2540.8,2540.7,0.78679]
[1748878197636,24.5748,2541.0,2540.7,0.78679]
[1748878197637,0.78674,2540.9,2540.7,6.135]
[1748878198035,0.78676,2540.8,2540.7,6.92178]
[1748878198231,0.78676,2540.8,2540.7,0.78678]
[1748878198437,0.78675,2540.9,2540.7,6.136]
[1748878198643,24.5748,2541.0,2540.7,6.136]
[1748878198644,0.78676,2540.8,2540.7,0.78678]
[1748878198844,3.2078,2541.0,2540.4,1.96715]
[1748878199044,24.5158,2541.0,2540.9,0.78673]
[1748878199440,0.8778,2541.1,2541.0,0.7867]
[1748878199647,22.09267,2541.2,2541.1,0.78667]
[1748878199846,21.306,2541.2,2541.1,6.136]
[1748878200046,22.09264,2541.2,2541.1,6.136]
[1748878200250,3.2078,2541.3,2541.1,6.136]
[1748878200453,3.2078,2541.3,2541.2,0.78664]
[1748878200645,3.2078,2541.3,2541.2,1.251]
[1748878200844,3.99441,2541.3,2541.2,7.387]
[1748878201148,3.99441,2541.3,2541.2,1.251]
[1748878201350,0.78673,2540.9,2540.8,0.78676]
[1748878201646,3.2078,2541.0,2540.9,0.78671]
[1748878201846,0.78665,2541.2,2541.1,0.78667]
[1748878202047,0.78665,2541.2,2541.1,6.136]
[1748878202247,0.78665,2541.2,2541.1,6.92267]
[1748878202445,3.99444,2541.3,2541.2,0.78664]
[1748878202654,3.2078,2541.3,2541.2,0.78664]
[1748878202842,3.2078,2541.3,2541.2,2.05834]
[1748878203648,3.2078,2541.3,2541.2,7.89374]
[1748878203943,3.2078,2541.3,2541.2,9.02974]
[1748878204143,4.0344,2541.9,2541.2,7.1071]
[1748878204353,3.2078,2541.9,2541.8,0.78645]
[1748878204755,3.2078,2541.9,2541.5,1.2717]
[1748878204954,5.84915133,2543.1,2541.7,1.3156]
[1748878205144,0.78621,2542.6,2542.5,3.2078]
[1748878205342,1.96533,2542.9,2542.2,3.2078]
[1748878205546,0.7863,2542.4,2542.3,6.92328]
[1748878205948,3.2078,2543.0,2542.5,0.78624]
[1748878206153,0.78602,2543.3,2543.1,0.78605]
[1748878206348,2.42182,2543.2,2543.1,6.137]
[1748878206542,2.9971,2543.2,2542.8,0.78614]
[1748878206749,0.78608,2543.0,2542.9,6.137]
[1748878207149,1.37588,2543.0,2542.9,6.137]
[1748878207549,1.37588,2543.0,2542.9,6.92311]
[1748878207550,0.5898,2543.0,2542.9,6.92311]
[1748878208251,1.957,2543.0,2542.9,6.92311]
[1748878208758,0.5898,2543.0,2542.9,6.92311]
[1748878209460,0.5898,2543.0,2542.9,6.92111]
[1748878209860,0.5898,2543.0,2542.9,8.22611]
[1748878211150,1.3672,2543.5,2543.4,0.78596]
[1748878211357,1.3672,2543.5,2543.3,3.2078]
[1748878211552,3.11859451,2544.0,2543.3,3.2078]
[1748878211553,7.00256584,2544.3,2543.3,36.2548]
[1748878211758,1.2554,2543.9,2543.8,3.99364]
[1748878211954,1.2554,2543.9,2543.8,6.92084]
[1748878212159,2.0412,2543.9,2543.8,6.135]
[1748878212556,2.0412,2543.9,2543.8,6.92083]
[1748878212857,2.0412,2543.9,2543.8,6.135]
[1748878213259,2.0412,2543.9,2543.8,6.92083]
[1748878213653,1.2554,2543.9,2543.8,6.92083]
[1748878214059,2.0412,2543.9,2543.8,6.92083]
[1748878214761,2.0412,2543.9,2543.8,6.135]
[1748878215259,0.7859,2543.6,2543.5,0.4307]
[1748878215461,0.7859,2543.6,2543.5,6.3537]
[1748878217853,0.7859,2543.6,2543.5,5.923]
[1748878218063,0.7859,2543.6,2543.3,3.99377]
[1748878218064,0.78596,2543.4,2543.3,3.2078]
[1748878218264,23.25661,2543.8,2543.3,9.91578]
[1748878218470,0.78596,2543.4,2543.3,9.1298]
[1748878218662,0.78596,2543.4,2543.3,3.2078]
[1748878218871,0.78596,2543.4,2543.3,9.1298]
[1748878220670,0.78596,2543.4,2543.3,3.2078]
[1748878220966,0.78596,2543.4,2543.3,9.1298]
[1748878221164,0.78602,2543.2,2543.1,33.4743]
[1748878221367,0.78602,2543.2,2543.1,0.4323]
[1748878221572,0.78602,2543.2,2543.1,6.3543]
[1748878221963,0.78602,2543.2,2543.1,0.4323]
[1748878222165,0.78602,2543.2,2543.1,6.3543]
[1748878222471,0.78602,2543.2,2543.1,0.4323]
[1748878222663,0.78617,2542.7,2542.6,1.2561]
[1748878222863,0.78617,2542.7,2542.6,5.922]
[1748878223467,0.78621,2542.6,2542.5,1.3665]
[1748878223767,0.78633,2542.2,2542.1,3.2078]
[1748878223965,0.78633,2542.2,2542.1,9.1298]
[1748878224768,0.78632,2542.3,2542.2,0.78631]
[1748878225168,0.78632,2542.3,2542.2,2.15281]
[1748878225369,0.7863,2542.3,2542.2,5.922]
[1748878225770,2.112,2542.3,2542.2,5.922]
[1748878226573,0.7863,2542.3,2542.2,9.1298]
[1748878226773,0.7863,2542.3,2542.2,10.4787]
[1748878226983,0.78636,2542.1,2542.0,0.8671]
[1748878227274,0.78639,2542.0,2541.9,36.2448]
[1748878227865,0.78639,2542.0,2541.9,42.1668]
[1748878228262,0.78639,2542.0,2541.9,42.95322]
[1748878228463,0.78632,2542.3,2542.2,0.78632]
[1748878228767,0.78607,2543.1,2542.4,1.96567]
[1748878228972,0.78608,2543.0,2542.9,3.2078]
[1748878229169,0.78608,2543.0,2542.9,9.1308]
[1748878229671,0.78608,2543.0,2542.9,5.923]
[1748878229865,1.96516,2543.1,2542.9,5.923]
[1748878230068,0.78621,2542.6,2542.5,0.7826]
[1748878230268,0.78621,2542.6,2542.5,6.7056]
[1748878230576,21.287,2542.7,2542.6,0.78621]
[1748878230772,22.07317,2542.7,2542.6,0.78621]
[1748878230974,0.789,2543.0,2542.6,3.2078]
[1748878231173,0.78615,2542.8,2542.7,0.78615]
[1748878231381,0.78617,2542.7,2542.6,3.2078]
[1748878231574,4.4913,2542.9,2542.3,5.923]
[1748878231873,0.78627,2542.4,2542.3,5.923]
[1748878232073,1.2835,2542.9,2542.8,0.78614]
[1748878232377,2.06962,2542.9,2542.8,0.78614]
[1748878232569,2.06962,2542.9,2542.7,0.78615]
[1748878232770,1.2835,2542.9,2542.6,3.994]
[1748878232970,3.11859451,2543.1,2542.6,3.2078]
[1748878233271,0.78611,2543.0,2542.8,0.78612]
[1748878233471,2.05411,2543.0,2542.9,5.923]
[1748878233671,3.2078,2543.3,2542.9,5.923]
[1748878233879,3.11859451,2543.5,2543.4,0.78596]
[1748878234081,3.11859451,2543.5,2543.4,6.70896]
[1748878234767,3.90452451,2543.5,2543.4,5.923]
[1748878234968,0.78593,2543.5,2543.4,5.923]
[1748878235177,3.11859451,2543.6,2543.4,5.923]
[1748878235479,3.11859451,2543.6,2543.5,0.78593]
[1748878236474,0.7859,2543.6,2543.5,6.70893]
[1748878236779,0.7859,2543.6,2543.5,5.923]
[1748878237872,0.78596,2543.4,2543.3,3.99378]
[1748878238075,0.78596,2543.4,2543.3,9.91578]
[1748878238272,0.78596,2543.4,2543.3,9.1298]
[1748878238479,0.78596,2543.4,2543.3,9.91577]
[1748878239577,1.2606,2543.6,2543.3,9.91577]
[1748878239578,0.78595,2543.5,2543.4,0.78593]
[1748878239777,0.78596,2543.4,2543.3,3.99376]
[1748878239969,0.78596,2543.4,2543.3,9.91576]
[1748878240778,1.37565,2543.5,2543.4,0.78596]
[1748878241981,0.5897,2543.5,2543.4,0.78596]
[1748878242479,7.09177133,2544.9,2543.4,6.2469]
[1748878242669,1.2307,2544.5,2544.4,0.78565]
[1748878242978,0.78562,2544.5,2544.4,6.70762]
[1748878243476,1.2307,2544.7,2544.4,5.922]
[1748878243678,0.78562,2544.5,2544.4,7.95453]
[1748878244074,0.78562,2544.5,2544.4,7.1689]
[1748878244477,0.78565,2544.4,2544.3,3.99346]
[1748878244779,0.78565,2544.4,2544.3,9.91446]
[1748878245276,0.78565,2544.4,2544.3,3.2078]
[1748878245477,0.78568,2544.3,2544.2,0.00589542]
[1748878245670,26.52508,2544.3,2544.2,5.90989542]
[1748878245869,26.52508,2544.3,2543.4,3.2078]
[1748878245870,1.96437,2544.1,2543.4,3.2078]
[1748878246073,0.78588,2543.7,2543.5,6.68991]
[1748878246373,1.2676,2543.6,2543.5,6.68991]
[1748878247687,1.683,2544.0,2543.5,5.904]
[1748878247976,2.55362,2544.5,2543.7,3.2078]
[1748878248283,2.55362,2544.5,2544.1,0.78572]
[1748878248284,22.5071,2544.4,2544.1,0.78572]
[1748878248483,0.78568,2544.3,2544.2,5.904]
[1748878248677,1.2481,2544.3,2544.0,3.2078]
[1748878248977,22.04371,2544.2,2544.1,5.904]
[1748878249180,23.2223,2544.2,2543.7,3.2078]
[1748878249391,0.78577,2544.1,2543.8,5.904]
[1748878249680,0.78577,2544.0,2543.9,0.78578]
[1748878249880,3.2078,2544.3,2543.8,5.904]
[1748878250078,0.7858,2543.9,2543.8,5.904]
[1748878250280,0.7858,2543.9,2543.8,6.68983]
[1748878250479,0.7858,2544.0,2543.9,0.78579]
[1748878250680,0.78579,2544.0,2543.9,0.78578]
[1748878250881,23.21923,2544.3,2543.8,5.904]
[1748878251071,0.78579,2544.0,2543.9,0.78578]
[1748878252181,0.78576,2544.1,2544.0,0.78574]
[1748878252573,0.7858,2544.0,2543.9,0.78578]
[1748878253083,0.7858,2544.0,2543.9,2.11278]
[1748878253382,1.96447,2544.0,2543.5,0.7859]
[1748878253589,0.78593,2543.5,2543.4,3.2078]
[1748878253779,0.78596,2543.4,2543.3,0.00589542]
[1748878254383,0.78611,2542.9,2542.8,3.2078]
[1748878254598,0.78609,2543.0,2542.9,0.78609]
[1748878254974,0.78609,2543.0,2542.8,9.1118]
[1748878254975,0.78611,2542.9,2542.8,3.99393]
[1748878255186,0.8219,2543.3,2542.8,9.1118]
[1748878255882,0.7861,2543.0,2542.9,5.904]
[1748878256183,0.7861,2543.0,2542.9,0.78609]
[1748878256580,0.7861,2543.0,2542.9,5.904]
[1748878256884,0.7861,2543.0,2542.9,6.69011]
[1748878257285,0.78603,2543.2,2543.1,0.78602]
[1748878258284,0.82779542,2543.3,2542.9,0.7861]
[1748878258581,0.82779542,2543.3,2543.0,5.904]
[1748878258778,0.78605,2543.1,2543.0,6.69007]
[1748878259583,0.78604,2543.2,2543.1,0.78602]
[1748878260190,0.00589542,2543.3,2543.2,0.78602]
[1748878260383,0.79188542,2543.3,2543.2,0.78602]
[1748878260683,0.00589542,2543.3,2543.2,0.78602]
[1748878260986,0.00589542,2543.3,2543.2,2.05192]
[1748878262086,0.8375,2543.8,2543.2,7.05192]
[1748878262386,0.78596,2543.4,2543.3,5.905]
[1748878262584,0.78596,2543.4,2543.3,6.69099]
[1748878263184,22.02396,2543.5,2543.4,0.78592]
[1748878263789,21.238,2543.5,2543.4,0.78592]
[1748878263992,0.79179542,2543.6,2543.5,0.78593]
[1748878264187,0.00589542,2543.6,2543.5,3.99373]
[1748878264383,5.42e-06,2543.6,2543.5,8.99373]
[1748878265083,5.42e-06,2543.6,2543.5,10.26133]
[1748878265386,5.42e-06,2543.6,2543.5,11.67735618]
[1748878265791,5.42e-06,2543.6,2543.5,11.47185916]
[1748878265990,0.58970542,2543.6,2543.5,17.37685916]
[1748878266382,0.58970542,2543.6,2543.5,6.47185916]
[1748878266683,1.37560542,2543.6,2543.5,9.1128]
[1748878267286,1.37560542,2543.6,2543.5,9.89873]
[1748878268293,1.37560542,2543.6,2543.5,9.89773]
[1748878268989,1.37560542,2543.6,2543.5,3.99373]
[1748878269188,1.37560542,2543.6,2543.5,9.1118]
[1748878270283,1.37560542,2543.6,2543.5,5.904]
[1748878270484,4.58340542,2543.6,2543.5,5.904]
[1748878270690,1.37560542,2543.6,2543.5,5.904]
[1748878271885,4.58340542,2543.6,2543.5,5.904]
[1748878272091,4.58340542,2543.6,2543.2,3.27849789]
[1748878272092,0.78599,2543.3,2543.2,3.27849789]
[1748878272397,0.78599,2543.3,2543.2,9.18249789]
[1748878272705,3.99379,2543.3,2543.2,5.97469789]
[1748878273297,6.18949,2543.3,2543.2,5.97469789]
[1748878273894,10.4035,2543.3,2542.6,3.2078]
[1748878274100,0.78614,2542.8,2542.7,5.905]
[1748878274394,1.96548,2542.7,2542.4,0.78626]
[1748878274598,21.218,2542.6,2542.5,6.69124]
[1748878274902,1.2497,2542.6,2542.5,9.1128]
[1748878275097,1.2497,2542.6,2542.5,6.69124]
[1748878275298,2.03591,2542.6,2542.5,5.905]
[1748878275493,2.03591,2542.6,2542.2,3.2078]
[1748878275494,1.2497,2542.6,2542.2,3.9941]
[1748878275694,0.78627,2542.4,2542.3,5.872]
[1748878276091,2.0936,2542.6,2541.6,1.20683803]
[1748878276396,3.99423,2541.9,2541.7,5.872]
[1748878276597,3.99425,2541.9,2541.7,6.65848]
[1748878276797,1.2497,2542.3,2542.1,0.78634]
[1748878276994,22.4657,2542.3,2542.2,0.78633]
[1748878277202,23.252,2542.3,2542.2,0.78633]
[1748878277505,2.036,2542.3,2542.2,5.873]
[1748878278197,0.78633,2542.2,2542.1,5.873]
[1748878278401,0.78648,2541.8,2541.6,3.27172803]
[1748878278603,0.78648,2541.8,2541.7,6.65948]
[1748878278798,0.78648,2541.8,2541.7,5.873]
[1748878279303,0.78645,2541.9,2541.8,0.78645]
[1748878279508,0.78648,2541.7,2541.6,1.20683803]
[1748878279897,0.78648,2541.7,2541.6,7.08083803]
[1748878280098,3.99428,2541.7,2541.6,7.08083803]
[1748878280701,3.99428,2541.7,2541.6,1.20683803]
[1748878280898,3.99428,2541.7,2541.6,7.08083803]
[1748878281301,2.0503,2541.9,2541.6,7.08083803]
[1748878281496,0.78648,2541.7,2541.6,7.08083803]
[1748878281695,3.99428,2541.7,2541.6,1.20683803]
[1748878282304,8.99428,2541.7,2541.6,1.20683803]
[1748878282697,0.78652,2541.6,2541.5,0.00589001]